bitfinex-derivatives/quotes_BTCF0:USTF0_20251210
["timestamp","ask_amount","ask_price","bid_price","bid_amount"]
[1765380924204,0.52622,91834.0,91833.0,0.17014]
[1765380924802,0.52933177,91834.0,91833.0,0.17014]
[1765380925004,0.08726177,91834.0,91833.0,0.53094]
[1765380925201,0.27994199,91843.0,91833.0,0.53094]
[1765380925202,0.0108887,91840.0,91833.0,0.17014]
[1765380925508,0.08127,91829.0,91828.0,0.01089]
[1765380925698,0.16542,91825.0,91824.0,0.04871332]
[1765380926100,0.16542,91825.0,91824.0,0.00016332]
[1765380926699,0.64057867,91834.0,91830.0,0.0108898]
[1765380926900,0.3608,91834.0,91833.0,0.1810295]
[1765380927100,0.002,91840.0,91832.0,0.04855]
[1765380927101,0.28177867,91840.0,91839.0,0.17014]
[1765380927411,0.08127,91840.0,91839.0,0.17014]
[1765380927607,0.00016332,91843.0,91842.0,0.17014]
[1765380928200,0.00016332,91843.0,91842.0,0.53094]
[1765380928603,0.00016332,91843.0,91842.0,0.17014]
[1765380929810,0.00316332,91843.0,91842.0,0.17114]
[1765380930607,0.00316332,91843.0,91842.0,0.53194]
[1765380931117,0.0108855,91867.0,91864.0,0.1712158]
[1765380931425,0.67693,91865.0,91864.0,0.0108858]
[1765380932211,0.68293,91865.0,91864.0,0.0118858]
[1765380932603,0.68693,91865.0,91864.0,0.0118858]
[1765380933011,0.68693,91865.0,91864.0,0.001]
[1765380935805,0.1788568,91856.0,91855.0,0.00016332]
[1765380936111,0.1788568,91856.0,91820.0,0.03890169]
[1765380936112,0.16797,91833.0,91832.0,0.0108895]
[1765380936506,0.3608,91838.0,91836.0,0.1712191]
[1765380936507,0.0936991,91837.0,91836.0,0.1712191]
[1765380936715,0.1788591,91837.0,91836.0,0.0108891]
[1765380937414,0.1788591,91837.0,91832.0,0.05193]
[1765380937616,0.1788595,91833.0,91832.0,0.0108896]
[1765380937806,0.16797,91833.0,91832.0,0.2231496]
[1765380938806,0.16897,91833.0,91832.0,0.2231496]
[1765380939619,0.16897,91833.0,91832.0,0.0128896]
[1765380942419,0.16897,91833.0,91832.0,0.1732196]
[1765380942812,0.16897,91833.0,91832.0,0.0128896]
[1765380943011,0.16897,91833.0,91832.0,0.0930796]
[1765380943918,0.16897,91833.0,91832.0,0.1732196]
[1765380945116,0.001,91833.0,91832.0,0.1732196]
[1765380945320,0.001,91833.0,91832.0,0.5340196]
[1765380951832,0.16897,91833.0,91832.0,0.5340196]
[1765380952420,0.16897,91833.0,91832.0,0.3628]
[1765380952626,0.52977,91833.0,91832.0,0.002]
[1765380953934,0.52977,91833.0,91832.0,0.1732196]
[1765380955326,0.16897,91833.0,91832.0,0.1732196]
[1765380956435,0.16897,91833.0,91832.0,0.0930796]
[1765380956635,0.52977,91833.0,91832.0,0.002]
[1765380957337,0.16897,91833.0,91832.0,0.002]
[1765380957529,0.52977,91833.0,91832.0,0.002]
[1765380958126,0.0108901,91828.0,91827.0,0.00016332]
[1765380958327,0.1690501,91828.0,91827.0,0.00016332]
[1765380959557,0.1690501,91828.0,91827.0,0.00416332]
[1765380959732,0.1690501,91828.0,91827.0,0.08372332]
[1765380959933,0.50832,91829.0,91827.0,0.08372332]
[1765380959934,0.44317,91833.0,91832.0,0.1737896]
[1765380960240,0.51852,91833.0,91832.0,0.1737896]
[1765380960737,0.51852,91833.0,91832.0,0.0108896]
[1765380960936,0.15772,91828.0,91827.0,0.00316332]
[1765380961142,0.15772,91828.0,91815.0,0.00108915]
[1765380961143,0.1686115,91816.0,91815.0,0.00108915]
[1765380961342,0.1686115,91816.0,91801.0,0.03890169]
[1765380961343,0.15772,91806.0,91803.0,0.010893]
[1765380961535,0.15772,91804.0,91803.0,0.010893]
[1765380962946,0.15772,91804.0,91803.0,0.004]
[1765380963646,0.15772,91804.0,91803.0,0.005]
[1765380967452,0.66624,91804.0,91803.0,0.1679]
[1765380967648,0.66624,91804.0,91803.0,0.005]
[1765380968048,0.6662,91804.0,91803.0,0.1679]
[1765380968353,0.66632,91804.0,91803.0,0.1679]
[1765380969646,0.66632,91804.0,91803.0,0.005]
[1765380969848,0.66632,91804.0,91803.0,0.08456]
[1765380970054,0.66632,91804.0,91803.0,0.005]
[1765380970250,0.1686145,91791.0,91790.0,0.00108945]
[1765380970447,0.6772145,91791.0,91790.0,0.00108945]
[1765380970753,0.6772145,91791.0,91790.0,0.21113945]
[1765380971654,0.6792145,91791.0,91790.0,0.23713945]
[1765380974461,0.66832,91791.0,91790.0,0.23713945]
[1765380976058,0.59297,91791.0,91790.0,0.23713945]
[1765380976560,0.002,91791.0,91790.0,0.23713945]
[1765380977152,0.16199,91791.0,91790.0,0.23713945]
[1765380977354,0.1708859,91779.0,91777.0,0.0108961]
[1765380977565,0.5316859,91779.0,91778.0,0.07893]
[1765380977967,0.5316859,91779.0,91778.0,0.15763]
[1765380978164,0.1708866,91773.0,91772.0,0.1685267]
[1765380978465,0.08184,91773.0,91772.0,0.1685267]
[1765380978966,0.52179,91779.0,91778.0,0.168526]
[1765380979160,0.52079,91779.0,91778.0,0.168526]
[1765380979364,0.52079,91779.0,91778.0,0.15763]
[1765380980253,0.0108966,91775.0,91772.0,0.09893]
[1765380980563,0.15999,91773.0,91772.0,0.09893]
[1765380981056,0.15999,91773.0,91770.0,0.0580469]
[1765380981057,0.15999,91767.0,91765.0,0.00108975]
[1765380981257,0.1708873,91767.0,91765.0,0.00108975]
[1765380981657,0.1708873,91767.0,91765.0,0.01198725]
[1765380981863,0.1708873,91767.0,91766.0,0.16862042]
[1765380982465,0.1718873,91767.0,91766.0,0.17762042]
[1765380982960,0.1728873,91767.0,91766.0,0.17572292]
[1765380983268,0.1728873,91767.0,91766.0,0.01809292]
[1765380983759,0.5336873,91767.0,91766.0,0.01809292]
[1765380985155,0.3618,91767.0,91766.0,0.16672292]
[1765380985362,0.3618,91767.0,91766.0,0.16072292]
[1765380985556,0.002,91767.0,91766.0,0.16672292]
[1765380985967,0.001,91767.0,91766.0,0.16372292]
[1765380986154,0.002,91767.0,91766.0,0.16672292]
[1765380986869,0.52279,91767.0,91766.0,0.16672292]
[1765380987169,0.52279,91767.0,91766.0,0.08802292]
[1765380987369,0.52279,91767.0,91766.0,0.16672292]
[1765380987664,0.52279,91767.0,91766.0,0.00909292]
[1765380987871,0.0108989,91755.0,91749.0,0.0293166]
[1765380988163,0.0108989,91755.0,91740.0,0.01199054]
[1765380988164,0.15565,91741.0,91740.0,0.01199054]
[1765380988363,0.66441,91741.0,91740.0,0.01199054]
[1765380988567,0.66441,91741.0,91740.0,0.00109004]
[1765380988962,0.66441,91741.0,91740.0,0.20251004]
[1765380989158,0.66452358,91741.0,91740.0,0.20251004]
[1765380989561,0.00011358,91741.0,91740.0,0.20251004]
[1765380989770,0.01311358,91741.0,91740.0,0.20251004]
[1765380990158,0.08786358,91741.0,91740.0,0.20251004]
[1765380990462,0.16876358,91741.0,91740.0,0.00109004]
[1765380990660,0.1665511,91735.0,91734.0,0.00021802]
[1765380990869,0.16666468,91735.0,91734.0,0.00021802]
[1765380991777,0.17476358,91735.0,91734.0,0.15727802]
[1765380992258,0.17476358,91735.0,91734.0,0.07668802]
[1765380992463,0.17476358,91735.0,91734.0,0.15727802]
[1765380992771,0.01911358,91735.0,91734.0,0.15727802]
[1765380994872,0.00778694,91735.0,91734.0,0.15727802]
[1765380995176,0.12268,91748.0,91747.0,0.15606]
[1765380995467,0.12268,91748.0,91747.0,0.1669597]
[1765380995670,0.15565,91745.0,91744.0,0.0109001]
[1765380996172,0.15565,91745.0,91744.0,0.1669601]
[1765380996667,0.1665499,91745.0,91744.0,0.1669601]
[1765380996861,0.07875,91748.0,91747.0,0.1669597]
[1765380997089,0.15965,91748.0,91747.0,0.1669597]
[1765380997376,0.15565,91748.0,91747.0,0.1669597]
[1765380997669,0.014,91748.0,91747.0,0.1669597]
[1765380998063,0.08875,91748.0,91747.0,0.1669597]
[1765380998266,0.09275,91748.0,91747.0,0.1679597]
[1765380998471,0.018,91748.0,91747.0,0.1679597]
[1765380998975,0.17365,91748.0,91747.0,0.15706]
[1765380999674,0.17365,91748.0,91747.0,0.001]
[1765381000074,0.15565,91735.0,91734.0,0.00021802]
[1765381000472,0.1665511,91735.0,91734.0,0.00021802]
[1765381000673,0.51645,91738.0,91735.0,0.0109011]
[1765381000873,0.51645,91738.0,91716.0,0.0109033]
[1765381000874,0.15565,91718.0,91716.0,0.0109033]
[1765381001173,0.15565,91717.0,91716.0,0.0109033]
[1765381001376,0.15565,91716.0,91715.0,0.15715034]
[1765381001880,0.43555,91718.0,91717.0,0.15606]
[1765381002271,0.43555,91718.0,91705.0,0.0293166]
[1765381002272,0.1665551,91702.0,91701.0,0.0293166]
[1765381002479,0.1665551,91702.0,91690.0,0.00109064]
[1765381002480,0.15565,91691.0,91690.0,0.00109064]
[1765381002673,0.07475,91699.0,91698.0,0.08059]
[1765381002871,0.07475,91699.0,91698.0,0.15606]
[1765381003175,0.15565,91697.0,91696.0,0.04536]
[1765381003380,0.0109055,91698.0,91697.0,0.1669657]
[1765381003768,0.7216,91699.0,91698.0,0.15606]
[1765381003971,0.7326,91699.0,91698.0,0.15606]
[1765381004480,0.79635,91699.0,91698.0,0.15606]
[1765381004882,0.7216,91699.0,91698.0,0.15606]
[1765381005070,0.7256,91699.0,91698.0,0.15706]
[1765381005271,0.7386,91699.0,91698.0,0.15706]
[1765381005480,0.9051554,91699.0,91698.0,0.15706]
[1765381005680,0.7386,91699.0,91698.0,0.15706]
[1765381006381,0.89425,91699.0,91698.0,0.001]
[1765381006577,0.89425,91699.0,91698.0,0.07647]
[1765381006776,0.89425,91699.0,91698.0,0.15706]
[1765381007581,0.89425,91699.0,91698.0,0.001]
[1765381007979,0.17265,91699.0,91698.0,0.001]
[1765381008285,0.89425,91699.0,91698.0,0.001]
[1765381008490,0.17265,91699.0,91698.0,0.001]
[1765381008983,0.89425,91699.0,91698.0,0.001]
[1765381009989,0.89425,91699.0,91698.0,0.15706]
[1765381010584,0.81335,91699.0,91698.0,0.15706]
[1765381012180,0.7386,91699.0,91698.0,0.15706]
[1765381014476,0.89425,91699.0,91698.0,0.15706]
[1765381015080,0.89425,91699.0,91698.0,0.001]
[1765381015275,0.89425,91699.0,91698.0,0.07647]
[1765381015487,0.89425,91699.0,91698.0,0.15706]
[1765381016073,0.81335,91699.0,91698.0,0.15706]
[1765381016272,0.89425,91699.0,91698.0,0.15706]
[1765381017087,0.7386,91699.0,91698.0,0.15706]
[1765381017994,0.7386,91699.0,91698.0,0.55706]
[1765381019092,0.93352,91699.0,91698.0,0.15706]
[1765381019291,0.7386,91699.0,91698.0,0.15706]
[1765381020285,0.93352,91699.0,91698.0,0.001]
[1765381021088,0.19492,91691.0,91690.0,0.00109064]
[1765381021287,0.205827,91686.0,91685.0,0.01099677]
[1765381021595,0.205827,91686.0,91685.0,8.977e-05]
[1765381022296,0.10029,91686.0,91685.0,0.20090977]
[1765381022498,0.19492,91686.0,91685.0,0.20090977]
[1765381022995,0.20292,91686.0,91685.0,0.20190977]
[1765381023192,0.20392,91686.0,91685.0,0.20290977]
[1765381023795,0.009,91686.0,91685.0,0.20290977]
[1765381024193,0.3608,91696.0,91695.0,0.2117259]
[1765381025201,0.3648,91696.0,91695.0,0.2127259]
[1765381025699,0.3728,91696.0,91695.0,0.2137259]
[1765381026702,0.3728,91696.0,91695.0,0.24299676]
[1765381026903,0.3728,91696.0,91695.0,0.2137259]
[1765381027796,0.56772,91696.0,91695.0,0.002]
[1765381027999,0.61387,91696.0,91695.0,0.002]
[1765381028605,0.203487,91686.0,91682.0,0.02931116]
[1765381028900,0.203487,91686.0,91673.0,0.05835254]
[1765381028901,0.564287,91686.0,91681.0,0.02931116]
[1765381029293,0.564287,91686.0,91677.0,0.010908]
[1765381029294,0.564287,91686.0,91683.0,0.02931116]
[1765381029994,0.567287,91686.0,91685.0,0.00108977]
[1765381030299,0.567287,91686.0,91685.0,0.03040093]
[1765381030801,0.569287,91686.0,91685.0,0.03140093]
[1765381031096,0.569287,91686.0,91685.0,0.00208977]
[1765381032605,0.569287,91686.0,91680.0,0.05835254]
[1765381032606,0.18979,91682.0,91680.0,0.03890169]
[1765381032802,0.0109081,91676.0,91674.0,0.02940411]
[1765381033005,0.2275984,91674.0,91673.0,0.02940411]
[1765381033303,0.18979,91672.0,91671.0,0.02940411]
[1765381033505,0.55059,91672.0,91671.0,0.02940411]
[1765381033693,0.0109087,91671.0,91670.0,0.0109088]
[1765381033898,0.2006991,91668.0,91667.0,0.0109092]
[1765381034294,0.2006991,91668.0,91667.0,0.1047792]
[1765381034494,0.2006991,91668.0,91667.0,0.0109092]
[1765381034495,0.18979,91668.0,91667.0,0.0109092]
[1765381034694,0.18979,91668.0,91667.0,0.1047792]
[1765381034901,0.18979,91668.0,91667.0,0.2005092]
[1765381035102,0.45838977,91672.0,91671.0,0.2005087]
[1765381035612,0.45838977,91672.0,91643.0,0.07782923]
[1765381035613,0.0109118,91645.0,91643.0,0.07782923]
[1765381035789,0.0109123,91641.0,91619.0,0.05828]
[1765381036098,8.977e-05,91641.0,91640.0,0.19069123]
[1765381036299,0.01100207,91641.0,91640.0,0.19069123]
[1765381036502,8.977e-05,91641.0,91640.0,0.19069123]
[1765381037297,0.03308977,91641.0,91640.0,0.19069123]
[1765381037502,0.0001636,91653.0,91640.0,0.19069123]
[1765381037503,0.0001636,91653.0,91652.0,0.1896]
[1765381038903,0.0121636,91653.0,91652.0,0.1906]
[1765381039414,0.3608,91666.0,91654.0,0.2005108]
[1765381039699,0.3608,91675.0,91674.0,0.2005084]
[1765381039902,0.3608,91681.0,91678.0,0.0109079]
[1765381040298,0.0109077,91680.0,91674.0,0.0109083]
[1765381040495,0.0001636,91686.0,91680.0,0.1896]
[1765381040707,0.0001636,91686.0,91685.0,0.2005071]
[1765381041607,0.0109043,91708.0,91703.0,0.0109048]
[1765381041911,0.0109038,91713.0,91708.0,0.09387]
[1765381042098,0.0109042,91710.0,91708.0,0.09387]
[1765381042298,0.0109043,91708.0,91703.0,0.0109048]
[1765381042799,0.0169043,91708.0,91703.0,0.0119048]
[1765381043208,0.41097129,91709.0,91708.0,0.1896]
[1765381044098,0.41597129,91709.0,91708.0,0.1906]
[1765381044900,0.51247129,91709.0,91708.0,0.1906]
[1765381045412,0.60476129,91709.0,91708.0,0.001]
[1765381046007,0.60676129,91709.0,91708.0,0.09587]
[1765381046196,0.60676129,91709.0,91708.0,0.002]
[1765381049630,0.41697129,91709.0,91708.0,0.25549]
[1765381050319,0.05617129,91709.0,91708.0,0.61629]
[1765381050505,0.0001636,91715.0,91714.0,0.2643936]
[1765381050702,0.3608,91737.0,91736.0,0.25349]
[1765381050900,0.3608,91745.0,91736.0,0.25349]
[1765381051111,0.3608,91745.0,91744.0,0.25349]
[1765381052316,0.00016351,91754.0,91753.0,0.25349]
[1765381053520,0.00016351,91754.0,91748.0,0.3608]
[1765381053521,0.25001,91749.0,91748.0,0.3608]
[1765381053727,0.07737351,91754.0,91753.0,0.25349]
[1765381053728,0.01106251,91754.0,91753.0,0.25349]
[1765381054023,0.0108993,91751.0,91745.0,0.0108999]
[1765381054218,0.0108993,91751.0,91744.0,0.001]
[1765381054219,0.00016351,91754.0,91753.0,0.25349]
[1765381054619,0.00416351,91754.0,91753.0,0.25449]
[1765381054922,0.00716351,91754.0,91753.0,0.25549]
[1765381055713,0.25001,91762.0,91761.0,0.010898]
[1765381055914,0.3716975,91766.0,91765.0,0.25349]
[1765381056315,0.25001,91759.0,91758.0,0.0108984]
[1765381056623,0.1348184,91758.0,91757.0,0.2643885]
[1765381056817,0.12392,91758.0,91757.0,0.2643885]
[1765381057018,0.12392,91758.0,91753.0,0.001]
[1765381057019,0.005,91762.0,91761.0,0.265388]
[1765381057613,0.00016351,91768.0,91767.0,0.3386073]
[1765381058621,0.3608,91786.0,91785.0,0.12517]
[1765381058812,0.48472,91786.0,91785.0,0.25349]
[1765381059017,0.3608,91786.0,91785.0,0.25349]
[1765381059719,0.3608,91786.0,91785.0,0.25449]
[1765381059720,0.3806951,91786.0,91785.0,0.25449]
[1765381060225,0.3698,91786.0,91785.0,0.25449]
[1765381060826,0.61981,91786.0,91785.0,0.001]
[1765381061021,0.62081,91786.0,91785.0,0.002]
[1765381061226,0.97261,91786.0,91785.0,0.001]
[1765381061624,0.97261,91786.0,91776.0,0.00016351]
[1765381061625,0.25001,91777.0,91776.0,0.00016351]
[1765381061825,0.6217061,91777.0,91776.0,0.00016351]
[1765381064220,0.010898,91761.0,91751.0,0.0108992]
[1765381064523,0.0108989,91754.0,91747.0,0.0108996]
[1765381064722,0.0108989,91754.0,91753.0,0.25349]
[1765381064928,0.12392,91747.0,91746.0,0.2643898]
[1765381065324,0.010899,91753.0,91750.0,0.0108993]
[1765381065524,0.134819,91753.0,91752.0,0.12517]
[1765381065724,0.12392,91745.0,91744.0,0.0109001]
[1765381065922,0.2609099,91745.0,91744.0,0.12517]
[1765381066235,0.25001,91745.0,91744.0,0.25349]
[1765381066421,0.001,91747.0,91745.0,0.0108999]
[1765381066733,0.001,91747.0,91746.0,0.25349]
[1765381067329,0.0108991,91753.0,91744.0,0.009]
[1765381067536,0.0108991,91753.0,91752.0,0.003]
[1765381067718,0.2609091,91753.0,91752.0,0.003]
[1765381068225,0.002,91747.0,91746.0,0.2873898]
[1765381068435,0.12592,91747.0,91746.0,0.2873898]
[1765381068731,0.12592,91747.0,91746.0,0.2723898]
[1765381068732,0.12492,91747.0,91746.0,0.2723898]
[1765381069120,0.001,91747.0,91746.0,0.2723898]
[1765381069518,0.2609092,91752.0,91751.0,0.0108992]
[1765381069730,0.25001,91749.0,91748.0,0.0108996]
[1765381069927,0.25001,91749.0,91742.0,0.3608]
[1765381069928,0.001,91753.0,91752.0,0.3158291]
[1765381070126,0.12492,91753.0,91752.0,0.3158291]
[1765381070329,0.12392,91753.0,91752.0,0.3158291]
[1765381070525,0.00016351,91756.0,91755.0,0.2643888]
[1765381071127,0.00016351,91756.0,91755.0,0.6251888]
[1765381071637,0.1348162,91777.0,91776.0,0.2643863]
[1765381071928,0.2609062,91777.0,91776.0,0.0108963]
[1765381072234,0.25001,91773.0,91772.0,0.2643866]
[1765381072437,0.134816,91779.0,91778.0,0.25349]
[1765381072827,0.25001,91779.0,91778.0,0.25349]
[1765381073224,0.36096351,91782.0,91781.0,0.25349]
[1765381074126,0.00016351,91782.0,91781.0,0.25349]
[1765381074324,0.3716932,91802.0,91801.0,0.25349]
[1765381074325,0.3608,91802.0,91801.0,0.25349]
[1765381074531,0.3608,91802.0,91800.0,0.0108933]
[1765381074532,0.3608,91818.0,91807.0,0.0108925]
[1765381074830,0.12392,91816.0,91815.0,0.0108916]
[1765381075034,0.0108913,91819.0,91818.0,0.12517]
[1765381075218,0.1348113,91819.0,91818.0,0.12517]
[1765381075423,0.2609013,91819.0,91818.0,0.12517]
[1765381075821,0.3608,91820.0,91809.0,0.00016342]
[1765381075822,0.2609022,91810.0,91809.0,0.00016342]
[1765381076633,0.0108921,91811.0,91810.0,0.25349]
[1765381076836,0.2609021,91811.0,91810.0,0.25349]
[1765381077227,0.1348121,91811.0,91810.0,0.25349]
[1765381077733,0.58368151,91820.0,91815.0,0.25349]
[1765381077734,0.0108916,91816.0,91815.0,0.25349]
[1765381078240,0.24248,91816.0,91815.0,0.25349]
[1765381078734,0.3608,91825.0,91819.0,0.23693]
[1765381079238,0.0108909,91822.0,91821.0,0.23693]
[1765381080035,0.12938,91825.0,91824.0,0.23693]
[1765381080337,0.006,91825.0,91824.0,0.23693]
[1765381080529,0.002,91825.0,91824.0,0.23693]
[1765381080837,0.07777276,91860.0,91822.0,0.0108908]
[1765381080838,0.0108873,91852.0,91840.0,0.23693]
[1765381081034,0.22288151,91860.0,91859.0,0.11779]
[1765381081230,0.24356856,91865.0,91845.0,0.07127]
[1765381081533,0.24356856,91865.0,91824.0,0.0108905]
[1765381081534,0.24248,91849.0,91824.0,0.04957085]
[1765381081835,0.12538,91843.0,91842.0,0.2478184]
[1765381082038,0.12538,91843.0,91831.0,0.00016331]
[1765381082039,0.0108886,91841.0,91834.0,1.5108893]
[1765381082333,0.07478,91858.0,91831.0,0.00016331]
[1765381082334,0.0108884,91843.0,91831.0,0.00016331]
[1765381082535,0.22288151,91844.0,91831.0,0.00016331]
[1765381082536,0.0108887,91840.0,91831.0,0.01105301]
[1765381082725,0.0108886,91841.0,91836.0,0.11779]
[1765381082932,0.24248,91837.0,91831.0,0.00016331]
[1765381083129,0.24248,91832.0,91831.0,0.00016331]
[1765381083327,0.31726,91832.0,91831.0,0.00016331]
[1765381083636,0.67806,91832.0,91831.0,0.00016331]
[1765381083941,0.67806,91832.0,91831.0,0.00116331]
[1765381084736,0.68006,91832.0,91831.0,0.00116331]
[1765381085128,0.68006,91832.0,91831.0,0.00016331]
[1765381085439,0.68406,91832.0,91831.0,0.00116331]
[1765381086138,0.2533713,91818.0,91817.0,0.3608]
[1765381086336,0.2533713,91818.0,91811.0,0.47859]
[1765381086337,0.12538,91812.0,91811.0,0.47859]
[1765381087157,0.12538,91812.0,91811.0,0.3608]
[1765381087158,0.253372,91812.0,91811.0,0.3608]
[1765381087944,0.253372,91812.0,91811.0,0.3638]
[1765381088238,0.22304447,91821.0,91811.0,0.3638]
[1765381088239,0.00016296,91821.0,91820.0,0.23693]
[1765381088833,0.0108893,91835.0,91819.0,0.0821612]
[1765381088834,0.12327,91835.0,91819.0,0.0821612]
[1765381089038,0.0108894,91834.0,91830.0,0.0108898]
[1765381089535,0.58368151,91840.0,91837.0,0.0108889]
[1765381089536,0.12327,91838.0,91837.0,0.0108889]
[1765381089740,0.2552289,91838.0,91837.0,0.0108889]
[1765381090145,0.24434,91838.0,91837.0,0.0108889]
[1765381090341,0.010889,91837.0,91834.0,0.0108893]
[1765381090539,0.12327,91835.0,91834.0,0.1287193]
[1765381090842,0.22288151,91847.0,91837.0,0.24082]
[1765381090843,0.001,91838.0,91837.0,0.24082]
[1765381091239,0.001,91838.0,91837.0,0.251709]
[1765381091435,0.24934,91838.0,91837.0,0.001]
[1765381092130,0.24934,91838.0,91828.0,0.00016331]
[1765381092131,0.25523,91829.0,91828.0,0.00016331]
[1765381092642,0.25523,91829.0,91828.0,0.11799331]
[1765381092937,0.25523,91829.0,91828.0,0.00016331]
[1765381093141,0.61603,91829.0,91828.0,0.00016331]
[1765381093443,0.25523,91829.0,91828.0,0.00016331]
[1765381094132,0.25523,91829.0,91828.0,0.00116331]
[1765381094335,0.61603,91829.0,91828.0,0.00116331]
[1765381095133,0.2552308,91822.0,91821.0,0.3608]
[1765381095540,0.12327,91805.0,91804.0,0.3608]
[1765381095730,0.2552328,91805.0,91804.0,0.3608]
[1765381095935,0.07478,91806.0,91798.0,0.0108937]
[1765381096138,0.24434,91794.0,91793.0,0.0110576]
[1765381096447,0.24434,91794.0,91793.0,0.2518776]
[1765381096832,0.3628,91822.0,91810.0,0.2517122]
[1765381097047,0.002,91822.0,91821.0,0.2517109]
[1765381097229,0.002,91822.0,91821.0,0.6125109]
[1765381097429,0.0108882,91844.0,91821.0,0.7216]
[1765381097633,0.0108882,91844.0,91819.0,0.06956]
[1765381097634,0.12327,91847.0,91846.0,0.0108879]
[1765381097832,0.12327,91847.0,91832.0,0.06956]
[1765381097833,0.0108873,91852.0,91851.0,0.24082]
[1765381098035,0.22288151,91856.0,91845.0,0.06956]
[1765381098036,0.24434,91856.0,91845.0,0.06956]
[1765381098237,0.0108862,91861.0,91860.0,0.24082]
[1765381098438,0.24434,91857.0,91856.0,0.0108868]
[1765381098643,0.2552268,91857.0,91845.0,0.06956]
[1765381098846,0.24434,91855.0,91854.0,0.010887]
[1765381099045,0.24434,91855.0,91842.0,0.00016331]
[1765381099046,0.24434,91843.0,91842.0,0.00016331]
[1765381099239,0.24434,91843.0,91842.0,0.01105171]
[1765381099438,0.60514,91843.0,91842.0,0.00016331]
[1765381099651,0.24434,91843.0,91842.0,0.00016331]
[1765381101743,0.12327,91843.0,91842.0,0.24098331]
[1765381101944,0.12627,91843.0,91842.0,0.24198331]
[1765381102445,0.003,91843.0,91842.0,0.24198331]
[1765381102639,0.12327,91844.0,91843.0,0.0108883]
[1765381102840,0.24434,91844.0,91843.0,0.0108883]
[1765381103340,0.24434,91851.0,91842.0,0.00116331]
[1765381103546,0.22288151,91852.0,91842.0,0.00116331]
[1765381103547,0.24434,91843.0,91842.0,0.00116331]
[1765381104548,0.24734,91843.0,91842.0,0.00116331]
[1765381105952,0.24734,91843.0,91842.0,0.11899331]
[1765381106255,0.003,91843.0,91842.0,0.24198331]
[1765381106749,0.3608,91875.0,91864.0,0.2517058]
[1765381106750,0.3608,91872.0,91864.0,0.2517058]
[1765381106945,0.3608,91877.0,91864.0,0.2517058]
[1765381107150,0.51008,91878.0,91864.0,0.6125058]
[1765381107453,0.0108857,91866.0,91864.0,0.6125058]
[1765381107659,0.0108849,91872.0,91864.0,0.6125058]
[1765381107954,0.01408856,91865.0,91864.0,0.6145058]
[1765381108454,0.00344688,91865.0,91864.0,0.6145058]
[1765381109150,0.23296688,91865.0,91864.0,0.6145058]
[1765381109743,0.23296688,91865.0,91864.0,0.3628]
[1765381109949,0.12824258,91865.0,91864.0,0.23886]
[1765381110160,0.11735688,91865.0,91864.0,0.23886]
[1765381110351,0.23296688,91865.0,91864.0,0.002]
[1765381110953,0.2404083,91843.0,91839.0,0.3608]
[1765381111256,0.2404083,91843.0,91830.0,0.0108897]
[1765381111558,0.2404083,91843.0,91836.0,0.0108891]
[1765381111966,0.2404083,91843.0,91839.0,0.0108888]
[1765381112259,0.2414083,91843.0,91839.0,0.0108888]
[1765381113362,0.2414083,91843.0,91836.0,0.0108891]
[1765381114660,0.2414083,91843.0,91838.0,0.0108888]
[1765381114862,0.2414083,91843.0,91835.0,0.0108893]
[1765381115160,0.2414083,91843.0,91837.0,0.0108889]
[1765381115559,0.23052,91843.0,91837.0,0.3608]
[1765381115761,0.001,91843.0,91842.0,0.23702331]
[1765381117363,0.23052,91843.0,91842.0,0.23702331]
[1765381117562,0.23052,91843.0,91842.0,0.00016331]
[1765381118956,0.11391,91831.0,91830.0,0.0108898]
[1765381119260,0.22952,91831.0,91830.0,0.0108898]
[1765381119652,0.22952,91831.0,91830.0,0.2477498]
[1765381120048,0.0108891,91837.0,91836.0,0.0108891]
[1765381120049,0.1247991,91837.0,91836.0,0.0108891]
[1765381120359,0.2404091,91837.0,91836.0,0.1276791]
[1765381121052,0.2404091,91837.0,91830.0,0.003]
[1765381121053,0.12496193,91840.0,91839.0,0.23686]
[1765381121850,0.00016323,91840.0,91839.0,0.23686]
[1765381122450,0.00016323,91840.0,91839.0,0.59766]
[1765381122966,0.24057193,91840.0,91839.0,0.59766]
[1765381123152,0.24057193,91840.0,91839.0,0.47759]
[1765381123348,0.22968323,91840.0,91839.0,0.47759]
[1765381123563,0.22968323,91840.0,91839.0,0.3608]
[1765381123867,0.0108908,91822.0,91821.0,0.27570366]
[1765381124053,0.2404108,91822.0,91821.0,0.00016331]
[1765381124365,0.6012108,91822.0,91821.0,0.00016331]
[1765381124565,0.2404116,91815.0,91814.0,0.00010548]
[1765381125457,0.22952,91815.0,91814.0,0.01099728]
[1765381126058,0.22952,91815.0,91814.0,0.00510548]
[1765381126754,0.23052,91815.0,91814.0,0.00810548]
[1765381126949,0.23052,91815.0,91814.0,0.12489548]
[1765381127150,0.11491,91815.0,91814.0,0.24496548]
[1765381127361,0.001,91815.0,91814.0,0.24496548]
[1765381127863,0.00016323,91840.0,91830.0,0.2477499]
[1765381127864,0.28006386,91840.0,91830.0,0.2477499]
[1765381128164,0.22952,91835.0,91834.0,0.0108893]
[1765381128364,0.11391,91832.0,91831.0,0.0108897]
[1765381128566,0.22952,91832.0,91831.0,0.0108897]
[1765381128766,0.28006386,91840.0,91825.0,0.00016331]
[1765381128767,0.52047256,91840.0,91839.0,0.0108888]
[1765381128958,0.24057193,91840.0,91839.0,0.0108888]
[1765381129351,0.22968323,91840.0,91839.0,0.0108888]
[1765381129560,0.00016323,91840.0,91839.0,0.2477488]
[1765381129950,0.00216323,91840.0,91839.0,0.2487488]
[1765381130156,0.00316323,91840.0,91839.0,0.6095488]
[1765381130765,0.00316323,91840.0,91839.0,0.6085488]
[1765381130766,0.00216323,91840.0,91839.0,0.6085488]
[1765381131766,0.00116323,91840.0,91839.0,0.6085488]
[1765381131965,0.00116323,91840.0,91839.0,0.63782989]
[1765381132157,0.00116323,91840.0,91839.0,0.6085488]
[1765381132769,0.23068323,91840.0,91839.0,0.6085488]
[1765381133165,0.11507323,91840.0,91839.0,0.6085488]
[1765381133469,0.00116323,91840.0,91839.0,0.6085488]
[1765381133666,0.23068323,91840.0,91839.0,0.3608]